[Event "Titled Tuesday Blitz May 17 Late 2022"]
[White "Schekachikhin, Maksim"]
[Black "Holt, Conrad"]
[WhiteFideId "24177830"]
[BlackFideId "2034387"]
[WhiteElo "2239"]
[BlackElo "2586"]
[Result "0-1"]
[Round "02"]
[TimeControl "180+1"]
[Date "2022.05.17"]
[WhiteClock "0:01:32"]
[BlackClock "0:01:18"]

1. Nf3 {[%clk 0:03:00]}  d5 {[%clk 0:03:00]} 2. g3 {[%clk 0:02:54]}  Bg4 {[%clk 0:02:56]} 3. Bg2 {[%clk 0:02:54]}  Nd7 {[%clk 0:02:55]} 4. O-O {[%clk 0:02:54]}  e6 {[%clk 0:02:55]} 5. d4 {[%clk 0:02:53]}  Ngf6 {[%clk 0:02:52]} 6. c4 {[%clk 0:02:53]}  c6 {[%clk 0:02:51]} 7. b3 {[%clk 0:02:52]}  Bd6 {[%clk 0:02:48]} 8. Bb2 {[%clk 0:02:52]}  Qb8 {[%clk 0:02:47]} 9. Nbd2 {[%clk 0:02:50]}  h6 {[%clk 0:02:46]} 10. Re1 {[%clk 0:02:49]}  O-O {[%clk 0:02:44]} 11. e4 {[%clk 0:02:47]}  dxe4 {[%clk 0:02:35]} 12. Nxe4 {[%clk 0:02:48]}  Bb4 {[%clk 0:02:36]} 13. Nxf6+ {[%clk 0:02:39]}  Nxf6 {[%clk 0:02:35]} 14. Re3 {[%clk 0:02:39]}  Rd8 {[%clk 0:02:32]} 15. Qe2 {[%clk 0:02:37]}  Qd6 {[%clk 0:02:11]} 16. h3 {[%clk 0:02:36]}  Bh5 {[%clk 0:02:08]} 17. g4 {[%clk 0:02:35]}  Bg6 {[%clk 0:02:07]} 18. Ne5 {[%clk 0:02:36]}  Bh7 {[%clk 0:02:05]} 19. c5 {[%clk 0:02:28]}  Qf8 {[%clk 0:01:59]} 20. a3 {[%clk 0:02:27]}  Ba5 {[%clk 0:01:58]} 21. b4 {[%clk 0:02:28]}  Bc7 {[%clk 0:01:58]} 22. f4 {[%clk 0:02:28]}  Nd5 {[%clk 0:01:57]} 23. Rg3 {[%clk 0:02:21]}  Nxf4 {[%clk 0:01:56]} 24. Qf2 {[%clk 0:02:17]}  Bxe5 {[%clk 0:01:54]} 25. dxe5 {[%clk 0:02:16]}  Nxg2 {[%clk 0:01:51]} 26. Qxg2 {[%clk 0:02:15]}  Rd5 {[%clk 0:01:50]} 27. g5 {[%clk 0:02:14]}  h5 {[%clk 0:01:48]} 28. Rf1 {[%clk 0:02:14]}  Bg6 {[%clk 0:01:47]} 29. Qe2 {[%clk 0:01:52]}  Qd8 {[%clk 0:01:44]} 30. Rg2 {[%clk 0:01:52]}  a5 {[%clk 0:01:41]} 31. Bc3 {[%clk 0:01:39]}  Rd3 {[%clk 0:01:37]} 32. Qb2 {[%clk 0:01:38]}  axb4 {[%clk 0:01:35]} 33. axb4 {[%clk 0:01:39]}  Rxh3 {[%clk 0:01:31]} 34. b5 {[%clk 0:01:39]}  cxb5 {[%clk 0:01:30]} 35. Bd4 {[%clk 0:01:36]}  Qd5 {[%clk 0:01:27]} 36. Bf2 {[%clk 0:01:35]}  Ra4 {[%clk 0:01:19]} 37. Qxb5 {[%clk 0:01:32]}  Rg4 {[%clk 0:01:18]} 0-1


[Site "https://www.chess.com"]

[Event "Titled Tuesday Blitz May 17 Late 2022"]
[White "Stoleriu, George"]
[Black "Steinberg, Nitzan"]
[WhiteFideId "1227505"]
[BlackFideId "2801795"]
[WhiteElo "2194"]
[BlackElo "2471"]
[Result "0-1"]
[Round "02"]
[TimeControl "180+1"]
[Date "2022.05.17"]
[WhiteClock "0:01:23"]
[BlackClock "0:01:30"]

1. e4 {[%clk 0:03:00]}  c5 {[%clk 0:03:00]} 2. Nf3 {[%clk 0:02:59]}  Nc6 {[%clk 0:03:01]} 3. Bb5 {[%clk 0:02:59]}  g6 {[%clk 0:02:58]} 4. Bxc6 {[%clk 0:02:57]}  dxc6 {[%clk 0:02:58]} 5. d3 {[%clk 0:02:55]}  Bg7 {[%clk 0:02:58]} 6. h3 {[%clk 0:02:55]}  Nf6 {[%clk 0:02:59]} 7. Be3 {[%clk 0:02:54]}  b6 {[%clk 0:02:55]} 8. Nc3 {[%clk 0:02:52]}  O-O {[%clk 0:02:54]} 9. Qd2 {[%clk 0:02:47]}  Re8 {[%clk 0:02:52]} 10. Bh6 {[%clk 0:02:44]}  Bh8 {[%clk 0:02:52]} 11. O-O {[%clk 0:02:38]}  Nd7 {[%clk 0:02:52]} 12. a4 {[%clk 0:02:38]}  e5 {[%clk 0:02:49]} 13. Nb1 {[%clk 0:02:37]}  Nf8 {[%clk 0:02:48]} 14. Bxf8 {[%clk 0:02:27]}  Rxf8 {[%clk 0:02:47]} 15. Na3 {[%clk 0:02:28]}  Be6 {[%clk 0:02:31]} 16. Nc4 {[%clk 0:02:28]}  f6 {[%clk 0:02:25]} 17. Rad1 {[%clk 0:02:23]}  Bg7 {[%clk 0:02:24]} 18. c3 {[%clk 0:02:21]}  Qc7 {[%clk 0:02:23]} 19. b3 {[%clk 0:02:21]}  Rad8 {[%clk 0:02:23]} 20. Qe3 {[%clk 0:02:22]}  Rd7 {[%clk 0:02:18]} 21. Rd2 {[%clk 0:02:11]}  Rfd8 {[%clk 0:02:18]} 22. Rfd1 {[%clk 0:02:12]}  b5 {[%clk 0:02:13]} 23. Na3 {[%clk 0:01:51]}  Bxb3 {[%clk 0:02:11]} 24. Rb1 {[%clk 0:01:52]}  Bxa4 {[%clk 0:02:06]} 25. Ne1 {[%clk 0:01:48]}  Bf8 {[%clk 0:02:03]} 26. Rc1 {[%clk 0:01:42]}  c4 {[%clk 0:01:51]} 27. Nb1 {[%clk 0:01:36]}  c5 {[%clk 0:01:39]} 28. dxc4 {[%clk 0:01:34]}  bxc4 {[%clk 0:01:40]} 29. Rxd7 {[%clk 0:01:34]}  Qxd7 {[%clk 0:01:38]} 30. Nf3 {[%clk 0:01:30]}  Qd3 {[%clk 0:01:32]} 31. Qe1 {[%clk 0:01:23]}  Bh6 {[%clk 0:01:30]} 0-1


[Site "https://www.chess.com"]

[Event "Titled Tuesday Blitz May 17 Late 2022"]
[White "Vovk, Orest"]
[Black "Melkumyan, Hrant"]
[WhiteFideId "14113490"]
[BlackFideId "13302485"]
[WhiteElo "2203"]
[BlackElo "2604"]
[Result "0-1"]
[Round "02"]
[TimeControl "180+1"]
[Date "2022.05.17"]
[WhiteClock "0:00:04"]
[BlackClock "0:00:13"]

1. h4 {[%clk 0:02:57]}  e5 {[%clk 0:02:58]} 2. h5 {[%clk 0:02:57]}  d5 {[%clk 0:02:58]} 3. h6 {[%clk 0:02:57]}  Nxh6 {[%clk 0:02:58]} 4. d4 {[%clk 0:02:58]}  exd4 {[%clk 0:02:54]} 5. Bxh6 {[%clk 0:02:58]}  gxh6 {[%clk 0:02:55]} 6. Qxd4 {[%clk 0:02:58]}  Rg8 {[%clk 0:02:54]} 7. Nc3 {[%clk 0:02:59]}  Bg7 {[%clk 0:02:51]} 8. Qh4 {[%clk 0:02:59]}  Qxh4 {[%clk 0:02:42]} 9. Rxh4 {[%clk 0:03:00]}  c6 {[%clk 0:02:43]} 10. O-O-O {[%clk 0:02:54]}  Be6 {[%clk 0:02:42]} 11. e4 {[%clk 0:02:50]}  d4 {[%clk 0:02:39]} 12. Nce2 {[%clk 0:02:47]}  c5 {[%clk 0:02:37]} 13. Nf4 {[%clk 0:02:45]}  Nc6 {[%clk 0:02:37]} 14. Nxe6 {[%clk 0:02:39]}  fxe6 {[%clk 0:02:37]} 15. Bb5 {[%clk 0:02:34]}  Kd7 {[%clk 0:02:34]} 16. Nf3 {[%clk 0:02:28]}  a6 {[%clk 0:02:32]} 17. Bxc6+ {[%clk 0:02:20]}  Kxc6 {[%clk 0:02:32]} 18. c3 {[%clk 0:02:06]}  dxc3 {[%clk 0:02:31]} 19. bxc3 {[%clk 0:02:06]}  Rad8 {[%clk 0:01:57]} 20. Rxd8 {[%clk 0:02:05]}  Rxd8 {[%clk 0:01:58]} 21. Kc2 {[%clk 0:02:06]}  b5 {[%clk 0:01:53]} 22. Rf4 {[%clk 0:01:47]}  Rd7 {[%clk 0:01:51]} 23. Rh4 {[%clk 0:01:28]}  c4 {[%clk 0:01:51]} 24. Rf4 {[%clk 0:01:20]}  a5 {[%clk 0:01:49]} 25. a3 {[%clk 0:01:04]}  Kc5 {[%clk 0:01:40]} 26. Rh4 {[%clk 0:01:00]}  Rf7 {[%clk 0:01:33]} 27. Rh5+ {[%clk 0:00:58]}  Kb6 {[%clk 0:01:33]} 28. Rh4 {[%clk 0:00:38]}  Bf8 {[%clk 0:01:33]} 29. Kb2 {[%clk 0:00:32]}  Rd7 {[%clk 0:01:33]} 30. Rf4 {[%clk 0:00:27]}  Be7 {[%clk 0:01:31]} 31. e5 {[%clk 0:00:21]}  h5 {[%clk 0:01:00]} 32. Rd4 {[%clk 0:00:17]}  Rd5 {[%clk 0:00:55]} 33. Rxd5 {[%clk 0:00:14]}  exd5 {[%clk 0:00:56]} 34. Nd4 {[%clk 0:00:14]}  b4 {[%clk 0:00:48]} 35. axb4 {[%clk 0:00:13]}  axb4 {[%clk 0:00:49]} 36. f4 {[%clk 0:00:11]}  Kc5 {[%clk 0:00:29]} 37. f5 {[%clk 0:00:11]}  bxc3+ {[%clk 0:00:24]} 38. Kxc3 {[%clk 0:00:11]}  Bh4 {[%clk 0:00:25]} 39. Nf3 {[%clk 0:00:08]}  Bd8 {[%clk 0:00:21]} 40. f6 {[%clk 0:00:07]}  d4+ {[%clk 0:00:21]} 41. Nxd4 {[%clk 0:00:04]}  Kd5 {[%clk 0:00:16]} 42. f7 {[%clk 0:00:03]}  Be7 {[%clk 0:00:15]} 43. e6 {[%clk 0:00:03]}  Bf8 {[%clk 0:00:13]} 44. Ne2 {[%clk 0:00:01]}  Bg7+ {[%clk 0:00:11]} 45. Kc2 {[%clk 0:00:01]}  Kxe6 {[%clk 0:00:11]} 46. Nf4+ {[%clk 0:00:02]}  Kxf7 {[%clk 0:00:11]} 47. Nxh5 {[%clk 0:00:03]}  Be5 {[%clk 0:00:11]} 48. g3 {[%clk 0:00:02]}  Kg6 {[%clk 0:00:12]} 49. Nf4+ {[%clk 0:00:02]}  Bxf4 {[%clk 0:00:12]} 50. gxf4 {[%clk 0:00:02]}  h5 {[%clk 0:00:12]} 51. Kc3 {[%clk 0:00:03]}  h4 {[%clk 0:00:13]} 52. Kxc4 {[%clk 0:00:04]}  h3 {[%clk 0:00:13]} 0-1


[Site "https://www.chess.com"]

[Event "Titled Tuesday Blitz May 17 Late 2022"]
[White "Zakhartsov, Vladimir"]
[Black "Kanyamarala, Tarun"]
[WhiteFideId "4145097"]
[BlackFideId "45004714"]
[WhiteElo "2428"]
[BlackElo "2219"]
[Result "1-0"]
[Round "02"]
[TimeControl "180+1"]
[Date "2022.05.17"]
[WhiteClock "0:00:13"]
[BlackClock "0:00:01"]

1. d4 {[%clk 0:03:00]}  Nf6 {[%clk 0:02:57]} 2. c4 {[%clk 0:03:01]}  e6 {[%clk 0:02:56]} 3. Nc3 {[%clk 0:03:01]}  Bb4 {[%clk 0:02:56]} 4. e3 {[%clk 0:03:01]}  c5 {[%clk 0:02:54]} 5. Ne2 {[%clk 0:03:01]}  cxd4 {[%clk 0:02:52]} 6. exd4 {[%clk 0:03:01]}  d5 {[%clk 0:02:52]} 7. c5 {[%clk 0:02:59]}  O-O {[%clk 0:02:51]} 8. a3 {[%clk 0:02:59]}  Ba5 {[%clk 0:02:51]} 9. b4 {[%clk 0:02:59]}  Bc7 {[%clk 0:02:51]} 10. Bf4 {[%clk 0:02:59]}  Bxf4 {[%clk 0:02:44]} 11. Nxf4 {[%clk 0:02:59]}  Qc7 {[%clk 0:02:39]} 12. Nd3 {[%clk 0:02:59]}  Nc6 {[%clk 0:02:37]} 13. Nb5 {[%clk 0:02:46]}  Qb8 {[%clk 0:02:37]} 14. Be2 {[%clk 0:02:43]}  a6 {[%clk 0:02:35]} 15. Nd6 {[%clk 0:02:43]}  Nxd4 {[%clk 0:02:34]} 16. O-O {[%clk 0:02:42]}  Nxe2+ {[%clk 0:02:28]} 17. Qxe2 {[%clk 0:02:42]}  Ne8 {[%clk 0:02:28]} 18. Nxe8 {[%clk 0:02:40]}  Rxe8 {[%clk 0:02:28]} 19. f4 {[%clk 0:02:40]}  Bd7 {[%clk 0:02:18]} 20. a4 {[%clk 0:02:41]}  b6 {[%clk 0:01:51]} 21. Ne5 {[%clk 0:02:41]}  Qc7 {[%clk 0:01:51]} 22. c6 {[%clk 0:02:32]}  Bc8 {[%clk 0:01:42]} 23. b5 {[%clk 0:02:32]}  f6 {[%clk 0:01:39]} 24. Nd3 {[%clk 0:02:31]}  axb5 {[%clk 0:01:19]} 25. axb5 {[%clk 0:02:30]}  Rxa1 {[%clk 0:01:19]} 26. Rxa1 {[%clk 0:02:31]}  e5 {[%clk 0:01:20]} 27. fxe5 {[%clk 0:02:23]}  fxe5 {[%clk 0:01:20]} 28. Nb4 {[%clk 0:02:15]}  Qd6 {[%clk 0:01:19]} 29. Qd2 {[%clk 0:02:14]}  d4 {[%clk 0:01:15]} 30. Rc1 {[%clk 0:02:13]}  e4 {[%clk 0:01:11]} 31. Nc2 {[%clk 0:02:08]}  Rd8 {[%clk 0:00:54]} 32. Rd1 {[%clk 0:02:07]}  Bg4 {[%clk 0:00:49]} 33. Re1 {[%clk 0:01:59]}  e3 {[%clk 0:00:40]} 34. Qd3 {[%clk 0:01:59]}  Bh5 {[%clk 0:00:31]} 35. h3 {[%clk 0:01:28]}  Bg6 {[%clk 0:00:19]} 36. Qc4+ {[%clk 0:01:28]}  Bf7 {[%clk 0:00:19]} 37. Qd3 {[%clk 0:01:29]}  Qg3 {[%clk 0:00:16]} 38. Rxe3 {[%clk 0:01:18]}  Qg5 {[%clk 0:00:04]} 39. Nxd4 {[%clk 0:01:05]}  Qc5 {[%clk 0:00:04]} 40. Re4 {[%clk 0:00:59]}  Bg6 {[%clk 0:00:03]} 41. Qb3+ {[%clk 0:00:58]}  Kh8 {[%clk 0:00:03]} 42. c7 {[%clk 0:00:35]}  Qc1+ {[%clk 0:00:03]} 43. Kf2 {[%clk 0:00:30]}  Qxc7 {[%clk 0:00:04]} 44. Ne6 {[%clk 0:00:22]}  Rd2+ {[%clk 0:00:04]} 45. Re2 {[%clk 0:00:22]}  Qf7+ {[%clk 0:00:02]} 46. Ke1 {[%clk 0:00:20]}  Rxe2+ {[%clk 0:00:02]} 47. Kxe2 {[%clk 0:00:21]}  Bf5 {[%clk 0:00:01]} 48. Nd4 {[%clk 0:00:19]}  Qxb3 {[%clk 0:00:02]} 49. Nxb3 {[%clk 0:00:20]}  Bd7 {[%clk 0:00:02]} 50. Nd4 {[%clk 0:00:20]}  g6 {[%clk 0:00:02]} 51. Ke3 {[%clk 0:00:21]}  Kg7 {[%clk 0:00:03]} 52. Ke4 {[%clk 0:00:21]}  Kf6 {[%clk 0:00:04]} 53. Kd5 {[%clk 0:00:22]}  Be8 {[%clk 0:00:04]} 54. Kd6 {[%clk 0:00:18]}  h5 {[%clk 0:00:04]} 55. Kc7 {[%clk 0:00:12]}  Ke5 {[%clk 0:00:04]} 56. Nc6+ {[%clk 0:00:12]}  Kf4 {[%clk 0:00:03]} 57. Kxb6 {[%clk 0:00:12]}  Kg3 {[%clk 0:00:03]} 58. Kc7 {[%clk 0:00:13]}  Kxg2 {[%clk 0:00:03]} 59. b6 {[%clk 0:00:13]}  Kxh3 {[%clk 0:00:01]} 60. b7 {[%clk 0:00:14]}  g5 {[%clk 0:00:01]} 61. b8=Q {[%clk 0:00:13]} 1-0


[Site "https://www.chess.com"]

[Event "Titled Tuesday Blitz May 17 Late 2022"]
[White "Abdyzhapar, Asylbek"]
[Black "Indjic, Aleksandar"]
[WhiteFideId "13800337"]
[BlackFideId "911925"]
[WhiteElo "2331"]
[BlackElo "2616"]
[Result "0-1"]
[Round "03"]
[TimeControl "180+1"]
[Date "2022.05.17"]
[WhiteClock "0:00:51"]
[BlackClock "0:00:08"]

1. d4 {[%clk 0:02:59]}  Nf6 {[%clk 0:02:50]} 2. Bg5 {[%clk 0:02:58]}  d5 {[%clk 0:02:48]} 3. e3 {[%clk 0:02:58]}  c5 {[%clk 0:02:45]} 4. Nd2 {[%clk 0:02:57]}  Nc6 {[%clk 0:02:32]} 5. c3 {[%clk 0:02:57]}  e6 {[%clk 0:02:29]} 6. Bd3 {[%clk 0:02:56]}  h6 {[%clk 0:02:25]} 7. Bh4 {[%clk 0:02:56]}  Bd6 {[%clk 0:02:24]} 8. f4 {[%clk 0:02:55]}  cxd4 {[%clk 0:02:19]} 9. cxd4 {[%clk 0:02:55]}  a6 {[%clk 0:02:06]} 10. Ngf3 {[%clk 0:02:55]}  b5 {[%clk 0:02:06]} 11. O-O {[%clk 0:02:54]}  Bb7 {[%clk 0:02:05]} 12. Ne5 {[%clk 0:02:54]}  Be7 {[%clk 0:02:05]} 13. Qe2 {[%clk 0:02:50]}  Rc8 {[%clk 0:02:03]} 14. a3 {[%clk 0:02:50]}  O-O {[%clk 0:02:00]} 15. Rac1 {[%clk 0:02:49]}  Na5 {[%clk 0:01:48]} 16. Bb1 {[%clk 0:02:49]}  Rxc1 {[%clk 0:01:45]} 17. Rxc1 {[%clk 0:02:48]}  Nc4 {[%clk 0:01:45]} 18. Bxf6 {[%clk 0:02:39]}  Bxf6 {[%clk 0:01:33]} 19. Qd3 {[%clk 0:02:39]}  Re8 {[%clk 0:01:32]} 20. Qh7+ {[%clk 0:02:35]}  Kf8 {[%clk 0:01:31]} 21. Ndf3 {[%clk 0:02:25]}  Nxe3 {[%clk 0:01:26]} 22. Re1 {[%clk 0:02:11]}  Nc4 {[%clk 0:01:23]} 23. f5 {[%clk 0:02:07]}  Ke7 {[%clk 0:00:52]} 24. fxe6 {[%clk 0:02:04]}  fxe6 {[%clk 0:00:50]} 25. Ng4 {[%clk 0:01:59]}  Kd6 {[%clk 0:00:49]} 26. b3 {[%clk 0:01:55]}  Nxa3 {[%clk 0:00:44]} 27. Nfe5 {[%clk 0:01:53]}  Rf8 {[%clk 0:00:42]} 28. Bd3 {[%clk 0:01:47]}  b4 {[%clk 0:00:36]} 29. Qg6 {[%clk 0:01:37]}  Qe8 {[%clk 0:00:30]} 30. Qh7 {[%clk 0:01:25]}  Qd8 {[%clk 0:00:16]} 31. Rc1 {[%clk 0:01:21]}  Nb5 {[%clk 0:00:12]} 32. Bxb5 {[%clk 0:01:20]}  axb5 {[%clk 0:00:13]} 33. Qd3 {[%clk 0:01:20]}  Qb6 {[%clk 0:00:13]} 34. Qg6 {[%clk 0:01:14]}  Qxd4+ {[%clk 0:00:10]} 35. Kh1 {[%clk 0:01:14]}  Bxe5 {[%clk 0:00:10]} 36. Re1 {[%clk 0:01:12]}  Qd2 {[%clk 0:00:10]} 37. Qb1 {[%clk 0:01:01]}  Bd4 {[%clk 0:00:10]} 38. Rd1 {[%clk 0:01:00]}  Qf4 {[%clk 0:00:10]} 39. h3 {[%clk 0:00:59]}  h5 {[%clk 0:00:09]} 40. Nh2 {[%clk 0:00:59]}  Bc3 {[%clk 0:00:09]} 41. Qg6 {[%clk 0:00:57]}  Qf6 {[%clk 0:00:09]} 42. Qg3+ {[%clk 0:00:56]}  e5 {[%clk 0:00:09]} 43. Nf3 {[%clk 0:00:55]}  h4 {[%clk 0:00:10]} 44. Qf2 {[%clk 0:00:53]}  d4 {[%clk 0:00:10]} 45. Rd3 {[%clk 0:00:51]}  e4 {[%clk 0:00:09]} 46. Rxc3 {[%clk 0:00:51]}  bxc3 {[%clk 0:00:09]} 47. Qa2 {[%clk 0:00:51]}  exf3 {[%clk 0:00:09]} 48. Qa3+ {[%clk 0:00:51]}  Kd5 {[%clk 0:00:08]} 0-1


[Site "https://www.chess.com"]

[Event "Titled Tuesday Blitz May 17 Late 2022"]
[White "Bluebaum, Matthias"]
[Black "Abdrlauf, Elham"]
[WhiteFideId "24651516"]
[BlackFideId "1533533"]
[WhiteElo "2556"]
[BlackElo "2371"]
[Result "0-1"]
[Round "03"]
[TimeControl "180+1"]
[Date "2022.05.17"]
[WhiteClock "0:00:14"]
[BlackClock "0:00:18"]

1. d4 {[%clk 0:03:00]}  Nf6 {[%clk 0:02:59]} 2. c4 {[%clk 0:03:00]}  e6 {[%clk 0:02:59]} 3. Nc3 {[%clk 0:03:01]}  d5 {[%clk 0:03:00]} 4. cxd5 {[%clk 0:03:01]}  exd5 {[%clk 0:03:00]} 5. Bg5 {[%clk 0:03:02]}  c6 {[%clk 0:03:01]} 6. e3 {[%clk 0:03:02]}  Bd6 {[%clk 0:03:02]} 7. Bd3 {[%clk 0:03:02]}  O-O {[%clk 0:03:03]} 8. Nf3 {[%clk 0:03:03]}  Re8 {[%clk 0:03:03]} 9. Qc2 {[%clk 0:03:03]}  h6 {[%clk 0:03:03]} 10. Bh4 {[%clk 0:03:03]}  Be6 {[%clk 0:03:04]} 11. Ne5 {[%clk 0:03:01]}  c5 {[%clk 0:03:04]} 12. Nb5 {[%clk 0:02:37]}  cxd4 {[%clk 0:02:49]} 13. Nxd6 {[%clk 0:02:24]}  Qxd6 {[%clk 0:02:50]} 14. Bxf6 {[%clk 0:02:21]}  gxf6 {[%clk 0:02:35]} 15. Nf3 {[%clk 0:02:21]}  Qb4+ {[%clk 0:02:27]} 16. Nd2 {[%clk 0:02:07]}  dxe3 {[%clk 0:02:14]} 17. fxe3 {[%clk 0:02:08]}  Qh4+ {[%clk 0:01:49]} 18. g3 {[%clk 0:02:04]}  Qg5 {[%clk 0:01:49]} 19. Kf2 {[%clk 0:01:54]}  Nc6 {[%clk 0:01:48]} 20. Nf3 {[%clk 0:01:55]}  Qg7 {[%clk 0:01:48]} 21. Qd2 {[%clk 0:01:52]}  Ne5 {[%clk 0:01:38]} 22. h3 {[%clk 0:01:44]}  Rad8 {[%clk 0:01:24]} 23. Nd4 {[%clk 0:01:42]}  Qg5 {[%clk 0:01:01]} 24. b3 {[%clk 0:01:34]}  Bxh3 {[%clk 0:00:47]} 25. Rxh3 {[%clk 0:01:08]}  Ng4+ {[%clk 0:00:48]} 26. Kg1 {[%clk 0:01:08]}  Rxe3 {[%clk 0:00:48]} 27. Nf5 {[%clk 0:01:08]}  Rxg3+ {[%clk 0:00:35]} 28. Rxg3 {[%clk 0:01:09]}  Qxd2 {[%clk 0:00:36]} 29. Rxg4+ {[%clk 0:01:09]}  Kh8 {[%clk 0:00:23]} 30. Bf1 {[%clk 0:00:52]}  Rg8 {[%clk 0:00:21]} 31. Rxg8+ {[%clk 0:00:52]}  Kxg8 {[%clk 0:00:22]} 32. Bg2 {[%clk 0:00:53]}  d4 {[%clk 0:00:19]} 33. Ng3 {[%clk 0:00:28]}  Qc3 {[%clk 0:00:17]} 34. Re1 {[%clk 0:00:14]}  Qxe1+ {[%clk 0:00:17]} 35. Nf1 {[%clk 0:00:14]}  d3 {[%clk 0:00:18]} 0-1


[Site "https://www.chess.com"]

[Event "Titled Tuesday Blitz May 17 Late 2022"]
[White "Bortnyk, Olexandr"]
[Black "Moroni, Luca Jr"]
[WhiteFideId "14120828"]
[BlackFideId "865834"]
[WhiteElo "2723"]
[BlackElo "2573"]
[Result "1-0"]
[Round "03"]
[TimeControl "180+1"]
[Date "2022.05.17"]
[WhiteClock "0:00:17"]
[BlackClock "0:00:03"]

1. d4 {[%clk 0:03:00]}  d5 {[%clk 0:02:57]} 2. Nc3 {[%clk 0:03:00]}  Nf6 {[%clk 0:02:57]} 3. Bf4 {[%clk 0:03:01]}  a6 {[%clk 0:02:56]} 4. e3 {[%clk 0:03:01]}  e6 {[%clk 0:02:57]} 5. Nf3 {[%clk 0:03:02]}  c5 {[%clk 0:02:55]} 6. a3 {[%clk 0:03:02]}  Nc6 {[%clk 0:02:56]} 7. Bd3 {[%clk 0:03:03]}  Bd6 {[%clk 0:02:52]} 8. dxc5 {[%clk 0:03:02]}  Bxc5 {[%clk 0:02:49]} 9. O-O {[%clk 0:03:00]}  O-O {[%clk 0:02:49]} 10. e4 {[%clk 0:03:00]}  h6 {[%clk 0:02:41]} 11. e5 {[%clk 0:02:49]}  Nd7 {[%clk 0:02:25]} 12. Qd2 {[%clk 0:02:48]}  f5 {[%clk 0:02:18]} 13. exf6 {[%clk 0:02:34]}  Qxf6 {[%clk 0:02:17]} 14. Bg3 {[%clk 0:02:33]}  Nde5 {[%clk 0:02:12]} 15. Nxe5 {[%clk 0:02:30]}  Nxe5 {[%clk 0:02:13]} 16. Rae1 {[%clk 0:02:27]}  Nxd3 {[%clk 0:02:11]} 17. Qxd3 {[%clk 0:02:28]}  Qf5 {[%clk 0:02:05]} 18. Qd2 {[%clk 0:02:16]}  Bd7 {[%clk 0:01:54]} 19. Re5 {[%clk 0:02:12]}  Qf7 {[%clk 0:01:54]} 20. Rfe1 {[%clk 0:02:01]}  Rac8 {[%clk 0:01:47]} 21. Nd1 {[%clk 0:01:43]}  Be7 {[%clk 0:01:42]} 22. c3 {[%clk 0:01:38]}  Bd6 {[%clk 0:01:34]} 23. R5e3 {[%clk 0:01:35]}  Bc5 {[%clk 0:01:32]} 24. Re5 {[%clk 0:01:34]}  Bd6 {[%clk 0:01:30]} 25. R5e2 {[%clk 0:01:34]}  Bc5 {[%clk 0:01:27]} 26. Kh1 {[%clk 0:01:15]}  Rce8 {[%clk 0:01:26]} 27. Re5 {[%clk 0:01:09]}  Bd6 {[%clk 0:01:25]} 28. R5e3 {[%clk 0:01:08]}  Bc5 {[%clk 0:01:25]} 29. Rf3 {[%clk 0:01:04]}  Qh5 {[%clk 0:01:22]} 30. Rxf8+ {[%clk 0:01:03]}  Rxf8 {[%clk 0:01:23]} 31. Ne3 {[%clk 0:00:57]}  Qg5 {[%clk 0:01:19]} 32. h4 {[%clk 0:00:34]}  Qh5 {[%clk 0:01:17]} 33. Nc2 {[%clk 0:00:31]}  Be7 {[%clk 0:01:15]} 34. Qd4 {[%clk 0:00:30]}  Bf6 {[%clk 0:00:58]} 35. Qd1 {[%clk 0:00:30]}  Qxd1 {[%clk 0:00:55]} 36. Rxd1 {[%clk 0:00:30]}  Ba4 {[%clk 0:00:55]} 37. Rd2 {[%clk 0:00:30]}  e5 {[%clk 0:00:49]} 38. Ne3 {[%clk 0:00:28]}  d4 {[%clk 0:00:50]} 39. Ng4 {[%clk 0:00:28]}  dxc3 {[%clk 0:00:36]} 40. bxc3 {[%clk 0:00:29]}  e4 {[%clk 0:00:37]} 41. Nxf6+ {[%clk 0:00:29]}  Rxf6 {[%clk 0:00:38]} 42. Kh2 {[%clk 0:00:27]}  Rb6 {[%clk 0:00:33]} 43. Rd8+ {[%clk 0:00:23]}  Kh7 {[%clk 0:00:32]} 44. Be5 {[%clk 0:00:21]}  Rb2 {[%clk 0:00:32]} 45. Bd4 {[%clk 0:00:21]}  Bc6 {[%clk 0:00:31]} 46. Rc8 {[%clk 0:00:17]}  Kg6 {[%clk 0:00:11]} 47. Rc7 {[%clk 0:00:17]}  Ra2 {[%clk 0:00:05]} 48. g4 {[%clk 0:00:16]}  h5 {[%clk 0:00:03]} 49. Rxg7+ {[%clk 0:00:16]}  Kh6 {[%clk 0:00:03]} 50. g5# {[%clk 0:00:17]} 1-0


[Site "https://www.chess.com"]